fUST/lending_fUST_20241202
["ID","MTS","AMOUNT","RATE_DAILY","PERIOD"]
[343928359,1733086237730,-500.0,0.00027945,3]
[343928360,1733086237739,-500.0,0.00027945,3]
[343928361,1733086237749,-604.89798933,0.00027945,3]
[343928362,1733086237758,-1636.35,0.00027945,3]
[343928363,1733086237767,-500.0,0.00027945,3]
[343928364,1733086237776,-151.0,0.00027945,7]
[343928365,1733086237785,-151.0,0.00027945,7]
[343928366,1733086237794,-532.11,0.00027945,3]
[343928367,1733086237803,-187.15014,0.00027945,7]
[343928368,1733086237812,-187.15014,0.00027945,7]
[343928369,1733086237821,-187.15014,0.00027945,7]
[343928370,1733086237835,-187.15014,0.00027945,7]
[343928371,1733086237844,-500.0,0.00027945,3]
[343928372,1733086237853,-13355.5,0.00027945,3]
[343928373,1733086237862,-500.0,0.00027945,3]
[343928374,1733086237870,-1707.22,0.00027945,3]
[343928375,1733086237879,-232.131405,0.00027945,7]
[343928376,1733086237888,-232.131405,0.00027945,7]
[343928377,1733086237898,-232.131405,0.00027945,7]
[343928379,1733086237907,-232.131405,0.00027945,7]
[343928380,1733086237916,-500.0,0.00027945,3]
[343928381,1733086237925,-500.0,0.00027945,3]
[343928382,1733086237934,-2856.87,0.00027945,3]
[343928383,1733086237943,-500.0,0.00027945,3]
[343928384,1733086237952,-500.0,0.00027945,3]
[343928385,1733086237961,-1159.82,0.00027945,3]
[343928386,1733086237970,-500.0,0.00027945,3]
[343928387,1733086237979,-613.32,0.00027945,3]
[343928388,1733086237989,-1141.17,0.00027945,3]
[343928389,1733086237998,-500.0,0.00027945,3]
[343928390,1733086238007,-1855.91,0.00027945,3]
[343928391,1733086238016,-500.0,0.00027945,3]
[343928392,1733086238025,-500.0,0.00027945,3]
[343928393,1733086238034,-151.0,0.00027945,7]
[343928394,1733086238044,-151.0,0.00027945,7]
[343928395,1733086238054,-249.24,0.00027945,3]
[343928396,1733086238063,-594.27,0.00027945,3]
[343928397,1733086238072,-500.0,0.00027945,3]
[343928398,1733086238086,-500.0,0.00027945,3]
[343928399,1733086238095,-784.17,0.00027945,3]
[343928400,1733086238104,-4062.28,0.00027945,3]
[343928401,1733086238113,-500.0,0.00027945,3]
[343928403,1733086238122,-500.0,0.00027945,3]
[343928404,1733086238131,-1222.19,0.00027945,3]
[343928405,1733086238140,-1435.16,0.00027945,3]
[343928406,1733086238150,-500.0,0.00027945,3]
[343928407,1733086238159,-153.679206,0.00027945,7]
[343928408,1733086238168,-153.679206,0.00027945,7]
[343928409,1733086238177,-3089.47,0.00027945,3]
[343928411,1733086238187,-153.679206,0.00027945,7]
[343928413,1733086238196,-153.679206,0.00027945,7]
[343928414,1733086238212,-500.0,0.00027945,3]
[343928415,1733086238222,-151.0,0.00027945,7]
[343928416,1733086238232,-151.0,0.00027945,7]
[343928417,1733086238242,-746.14,0.00027945,3]
[343928418,1733086238251,-1670.7,0.00027945,3]
[343928419,1733086238261,-553.80601779,0.00027945,3]
[343928420,1733086238270,-500.0,0.00027945,3]
[343928421,1733086238279,-500.0,0.00027973,2]
[343928423,1733086238288,-1000.0,0.00028,28]
[343928425,1733086238297,-2611.48911317,0.00028,2]
[343928427,1733086238307,-79756.84343942,0.00028,2]
[343928437,1733086238732,-150.2,0.00027671,3]
[343928438,1733086238742,-20734.23108218,0.00028,2]
[343928439,1733086238751,-151.0,0.00028,7]
[343928440,1733086238761,-151.0,0.00028,7]
[343928441,1733086238771,-187.15014,0.00028,7]
[343928442,1733086238780,-187.15014,0.00028,7]
[343928443,1733086238790,-232.131405,0.00028,7]
[343928444,1733086238799,-232.131405,0.00028,7]
[343928445,1733086238808,-151.0,0.00028,7]
[343928446,1733086238817,-153.679206,0.00028,7]
[343928447,1733086238828,-153.679206,0.00028,7]
[343928448,1733086238837,-153.679206,0.00028,7]
[343928449,1733086238847,-153.679206,0.00028,7]
[343928451,1733086238856,-151.0,0.00028,7]
[343928453,1733086238866,-156.24,0.000281,31]
[343928455,1733086238875,-156.24,0.000281,31]
[343928457,1733086238884,-156.24,0.000281,31]
[343928459,1733086238893,-156.24,0.000281,31]
[343928462,1733086238903,-156.24,0.000281,31]
[343928464,1733086238912,-156.24,0.000281,31]
[343928465,1733086238921,-156.24,0.000281,31]
[343928467,1733086238932,-156.24,0.000281,31]
[343928468,1733086238942,-156.24,0.000281,31]
[343928469,1733086238951,-156.24,0.000281,31]
[343928470,1733086238961,-156.24,0.000281,31]
[343928471,1733086238970,-156.24,0.000281,31]
[343928472,1733086238979,-156.24,0.000281,31]
[343928473,1733086238988,-156.24,0.000281,31]
[343928474,1733086238997,-156.24,0.000281,31]
[343928475,1733086239006,-156.24,0.000281,31]
[343928476,1733086239016,-156.24,0.000281,31]
[343928477,1733086239025,-156.24,0.000281,31]
[343928478,1733086239034,-156.24,0.000281,31]
[343928479,1733086239043,-156.24,0.000281,31]
[343928480,1733086239053,-156.24,0.000281,31]
[343928481,1733086239062,-156.24,0.000281,31]
[343928482,1733086239071,-156.24,0.000281,31]
[343928483,1733086239082,-156.24,0.000281,31]
[343928484,1733086239091,-633.22779475,0.00028178,2]
[343928485,1733086239100,-342.76530156,0.000282,2]
[343928486,1733086239110,-150.18,0.00028219,3]
[343928487,1733086239119,-199.64,0.00028219,3]
[343928488,1733086239128,-332.68916889,0.00028219,2]
[343928489,1733086239138,-500.0,0.00028219,3]
[343928490,1733086239148,-500.0,0.00028219,3]
[343928491,1733086239157,-500.0,0.00028219,3]
[343928492,1733086239167,-500.0,0.00028219,3]
[343928493,1733086239176,-500.0,0.00028219,3]
[343928494,1733086239186,-507.66306884,0.00028219,3]
[343928495,1733086239195,-500.0,0.00028219,3]
[343928496,1733086239205,-564.24971058,0.00028219,3]
[343928497,1733086239218,-500.0,0.00028219,3]
[343928498,1733086239227,-500.0,0.00028219,3]
[343928499,1733086239236,-382.54,0.00028219,3]
[343928500,1733086239246,-500.0,0.00028219,3]
[343928501,1733086239257,-151.0,0.00028219,7]
[343928502,1733086239267,-500.0,0.00028219,3]
[343928503,1733086239276,-500.0,0.00028219,3]
[343928504,1733086239288,-633.36,0.00028219,3]
[343928505,1733086239299,-500.0,0.00028219,3]
[343928506,1733086239309,-621.6,0.00028219,3]
[343928507,1733086239318,-500.0,0.00028219,3]
[343928508,1733086239328,-500.0,0.00028219,3]
[343928509,1733086239338,-1636.35,0.00028219,3]
[343928510,1733086239347,-502.52929526,0.00028219,3]
[343928511,1733086239357,-151.0,0.00028219,7]
[343928512,1733086239367,-532.11,0.00028219,3]
[343928513,1733086239377,-187.15014,0.00028219,7]
[343928514,1733086239386,-187.15014,0.00028219,7]
[343928515,1733086239395,-500.0,0.00028219,3]
[343928516,1733086239406,-13355.5,0.00028219,3]
[343928517,1733086239415,-255.22042211,0.00028219,3]
[343928518,1733086239428,-244.77957789,0.00028219,3]
[343928519,1733086239438,-760.37642211,0.00028219,3]
[343928520,1733086239450,-946.84357789,0.00028219,3]
[343928521,1733086239460,-232.131405,0.00028219,7]
[343928522,1733086239470,-232.131405,0.00028219,7]
[343928523,1733086239479,-500.0,0.00028219,3]
[343928524,1733086239488,-500.0,0.00028219,3]
[343928525,1733086239497,-2856.87,0.00028219,3]
[343928526,1733086239507,-500.0,0.00028219,3]
[343928527,1733086239516,-500.0,0.00028219,3]
[343928528,1733086239527,-1159.82,0.00028219,3]
[343928529,1733086239536,-500.0,0.00028219,3]
[343928530,1733086239547,-613.32,0.00028219,3]
[343928531,1733086239556,-1141.17,0.00028219,3]
[343928532,1733086239566,-520.3,0.00028219,3]
[343928533,1733086239575,-872.21361235,0.00028219,3]
[343928546,1733086240481,-248.97,0.00027945,3]
[343928547,1733086240490,-86.9570135,0.0002799,10]
[343928548,1733086240594,-5307.1729865,0.0002799,10]
[343928549,1733086240603,-983.69638765,0.00028219,3]
[343928550,1733086240613,-500.0,0.00028219,3]
[343928551,1733086240622,-500.0,0.00028219,3]
[343928552,1733086240631,-151.0,0.00028219,7]
[343928553,1733086240640,-500.0,0.00028219,3]
[343928554,1733086240649,-500.0,0.00028219,3]
[343928555,1733086240659,-784.17,0.00028219,3]
[343928556,1733086240668,-4062.28,0.00028219,3]
[343928557,1733086240677,-500.0,0.00028219,3]
[343928558,1733086240686,-500.0,0.00028219,3]
[343928559,1733086240695,-453.98062583,0.00028219,3]
[343928560,1733086240707,-768.20937417,0.00028219,3]
[343928561,1733086240716,-1435.16,0.00028219,3]
[343928562,1733086240724,-249.85070184,0.00028219,3]
[343928563,1733086240733,-153.679206,0.00028219,7]
[343928564,1733086240743,-3089.47,0.00028219,3]
[343928565,1733086240752,-500.0,0.00028219,3]
[343928566,1733086240761,-153.679214,0.00028219,7]
[343928567,1733086240770,-746.14,0.00028219,3]
[343928568,1733086240779,-151.0,0.00028219,7]
[343928569,1733086240788,-1670.7,0.00028219,3]
[343928570,1733086240797,-500.0,0.00028219,3]
[343928571,1733086240807,-200.023718,0.00028229,2]
[343928572,1733086240816,-500.0,0.00028493,3]
[343928573,1733086240825,-500.0,0.00028493,3]
[343928574,1733086240840,-500.0,0.00028493,3]
[343928575,1733086240849,-500.0,0.00028493,3]
[343928576,1733086240859,-500.0,0.00028493,3]
[343928577,1733086240868,-500.0,0.00028493,3]
[343928578,1733086240878,-457.40501808,0.00028493,3]
[343928579,1733086240887,-500.0,0.00028493,3]
[343928580,1733086240896,-500.0,0.00028493,3]
[343928582,1733086240906,-168.328373,0.00028493,7]
[343928584,1733086240915,-500.0,0.00028493,3]
[343928586,1733086240925,-500.0,0.00028493,3]
[343928587,1733086240934,-633.36,0.00028493,3]
[343928588,1733086240943,-500.0,0.00028493,3]
[343928589,1733086240953,-621.6,0.00028493,3]
[343928590,1733086240962,-500.0,0.00028493,3]
[343928591,1733086240972,-500.0,0.00028493,3]
[343928592,1733086240981,-1636.35,0.00028493,3]
[343928593,1733086240991,-188.313866,0.00028493,7]
[343928595,1733086241000,-532.11,0.00028493,3]
[343928596,1733086241009,-187.15014,0.00028493,7]
[343928597,1733086241019,-187.150144,0.00028493,7]
[343928598,1733086241028,-500.0,0.00028493,3]
[343928599,1733086241037,-13355.5,0.00028493,3]
[343928600,1733086241047,-500.0,0.00028493,3]
[343928601,1733086241056,-1707.22,0.00028493,3]
[343928602,1733086241065,-232.131405,0.00028493,7]
[343928603,1733086241075,-232.1314,0.00028493,7]
[343928604,1733086241087,-500.0,0.00028493,3]
[343928605,1733086241097,-500.0,0.00028493,3]
[343928606,1733086241106,-2856.87,0.00028493,3]
[343928607,1733086241115,-500.0,0.00028493,3]
[343928608,1733086241124,-500.0,0.00028493,3]
[343928609,1733086241134,-1159.82,0.00028493,3]
[343928610,1733086241217,-500.0,0.00028493,3]
[343928611,1733086241228,-613.32,0.00028493,3]
[343928612,1733086241238,-1141.17,0.00028493,3]
[343928613,1733086241248,-889.10284242,0.00028493,3]
[343928632,1733086243604,-442.43254791,0.00027397,3]
[343928633,1733086243615,-57.56745209,0.00027397,3]
[343928634,1733086243625,-500.0,0.00027671,3]
[343928635,1733086243634,-500.0,0.00027945,3]
[343928636,1733086243643,-500.0,0.00028219,3]
[343928637,1733086243652,-966.80715758,0.00028493,3]
[343928638,1733086243662,-500.0,0.00028493,3]
[343928639,1733086243671,-500.0,0.00028493,3]
[343928640,1733086243681,-151.0,0.00028493,7]
[343928641,1733086243690,-500.0,0.00028493,3]
[343928642,1733086243700,-500.0,0.00028493,3]
[343928643,1733086243709,-784.17,0.00028493,3]
[343928644,1733086243718,-4062.28,0.00028493,3]
[343928645,1733086243728,-500.0,0.00028493,3]
[343928647,1733086243737,-500.0,0.00028493,3]
[343928648,1733086243746,-1222.19,0.00028493,3]
[343928649,1733086243756,-1435.16,0.00028493,3]
[343928651,1733086243766,-3089.47,0.00028493,3]
[343928652,1733086243775,-500.0,0.00028493,3]
[343928653,1733086243784,-746.14,0.00028493,3]
[343928654,1733086243794,-1670.7,0.00028493,3]
[343928655,1733086243803,-500.0,0.00028493,3]
[343928656,1733086243813,-300.0,0.000285,2]
[343928657,1733086243823,-479.72047,0.000285,15]
[343928658,1733086243834,-349.65198201,0.00028521,2]
[343928659,1733086243844,-200.023718,0.00028573,2]
[343928660,1733086243853,-633.22779475,0.00028623,2]
[343928661,1733086243862,-500.0,0.00028767,3]
[343928662,1733086243871,-232.29420568,0.00028767,3]
[343928663,1733086243881,-500.0,0.00028767,3]
[343928664,1733086243890,-500.0,0.00028767,3]
[343928665,1733086243900,-500.0,0.00028767,3]
[343928666,1733086243909,-500.0,0.00028767,3]
[343928667,1733086243918,-500.0,0.00028767,3]
[343928668,1733086243928,-500.0,0.00028767,3]
[343928669,1733086243938,-500.0,0.00028767,3]
[343928670,1733086243948,-633.36,0.00028767,3]
[343928671,1733086243957,-621.6,0.00028767,3]
[343928672,1733086243966,-500.0,0.00028767,4]
[343928673,1733086243976,-500.0,0.00028767,3]
[343928674,1733086243985,-500.0,0.00028767,3]
[343928675,1733086243995,-1636.35,0.00028767,3]
[343928676,1733086244004,-532.11,0.00028767,3]
[343928677,1733086244014,-500.0,0.00028767,3]
[343928678,1733086244023,-13355.5,0.00028767,3]
[343928679,1733086244032,-500.0,0.00028767,3]
[343928680,1733086244042,-1707.22,0.00028767,3]
[343928681,1733086244051,-500.0,0.00028767,3]
[343928682,1733086244061,-500.0,0.00028767,3]
[343928683,1733086244071,-2856.87,0.00028767,3]
[343928684,1733086244081,-500.0,0.00028767,3]
[343928685,1733086244090,-419.01654922,0.00028767,3]
[343928686,1733086244100,-1159.82,0.00028767,3]
[343928687,1733086244109,-389.88395816,0.00028767,3]
[343928688,1733086244119,-613.32,0.00028767,3]
[343928689,1733086244129,-1141.17,0.00028767,3]
[343928690,1733086244138,-1855.91,0.00028767,3]
[343928691,1733086244148,-500.0,0.00028767,3]
[343928692,1733086244158,-500.0,0.00028767,3]
[343928693,1733086244168,-500.0,0.00028767,3]
[343928694,1733086244177,-784.17,0.00028767,3]
[343928695,1733086244187,-4062.28,0.00028767,3]
[343928696,1733086244196,-500.0,0.00028767,3]
[343928697,1733086244205,-500.0,0.00028767,3]
[343928698,1733086244219,-1222.19,0.00028767,3]
[343928699,1733086244235,-1435.16,0.00028767,3]
[343928700,1733086244245,-3089.47,0.00028767,3]
[343928701,1733086244255,-500.0,0.00028767,3]
[343928702,1733086244265,-746.14,0.00028767,3]
[343928703,1733086244274,-1670.7,0.00028767,3]
[343928704,1733086244284,-500.0,0.00028767,3]
[343928705,1733086244293,-153.266472,0.000289,18]
[343928706,1733086244303,-156.24,0.000289,31]
[343928707,1733086244312,-156.24,0.000289,31]
[343928708,1733086244321,-156.24,0.000289,31]
[343928709,1733086244332,-156.24,0.000289,31]
[343928710,1733086244343,-156.24,0.000289,31]
[343928711,1733086244353,-156.24,0.000289,31]
[343928712,1733086244362,-156.24,0.000289,31]
[343928713,1733086244371,-156.24,0.000289,31]
[343928714,1733086244381,-156.24,0.000289,31]
[343928715,1733086244390,-156.24,0.000289,31]
[343928716,1733086244400,-156.24,0.000289,31]
[343928717,1733086244409,-156.24,0.000289,31]
[343928718,1733086244419,-156.24,0.000289,31]
[343928719,1733086244428,-156.24,0.000289,31]
[343928720,1733086244437,-156.24,0.000289,31]
[343928721,1733086244447,-156.24,0.000289,31]
[343928722,1733086244457,-156.24,0.000289,31]
[343928723,1733086244466,-156.24,0.000289,31]
[343928724,1733086244475,-156.24,0.000289,31]
[343928725,1733086244485,-156.24,0.000289,31]
[343928726,1733086244494,-156.24,0.000289,31]
[343928727,1733086244503,-156.24,0.000289,31]
[343928728,1733086244513,-156.24,0.000289,31]
[343928729,1733086244522,-156.24,0.000289,31]
[343928730,1733086244532,-500.0,0.000289,5]
[343928731,1733086244541,-200.023718,0.00028918,2]
[343928732,1733086244551,-500.0,0.00028933,5]
[343928733,1733086244560,-1000.0,0.00029,29]
[343928734,1733086244570,-500.0,0.00029041,3]
[343928735,1733086244581,-500.0,0.00029041,3]
[343928736,1733086244590,-500.0,0.00029041,3]
[343928737,1733086244599,-500.0,0.00029041,3]
[343928738,1733086244608,-500.0,0.00029041,3]
[343928739,1733086244619,-500.0,0.00029041,3]
[343928740,1733086244629,-500.0,0.00029041,3]
[343928741,1733086244638,-500.0,0.00029041,3]
[343928742,1733086244648,-633.36,0.00029041,3]
[343928743,1733086244658,-621.6,0.00029041,3]
[343928744,1733086244667,-500.0,0.00029041,3]
[343928745,1733086244676,-500.0,0.00029041,3]
[343928746,1733086244685,-1636.35,0.00029041,3]
[343928747,1733086244695,-532.11,0.00029041,3]
[343928748,1733086244704,-500.0,0.00029041,3]
[343928749,1733086244714,-13355.5,0.00029041,3]
[343928750,1733086244723,-500.0,0.00029041,3]
[343928751,1733086244732,-1707.22,0.00029041,3]
[343928752,1733086244742,-500.0,0.00029041,3]
[343928753,1733086244752,-500.0,0.00029041,3]
[343928754,1733086244762,-2856.87,0.00029041,3]
[343928755,1733086244771,-500.0,0.00029041,3]
[343928756,1733086244781,-1159.82,0.00029041,3]
[343928757,1733086244790,-613.32,0.00029041,3]
[343928758,1733086244800,-1141.17,0.00029041,3]
[343928759,1733086244809,-1855.91,0.00029041,3]
[343928760,1733086244819,-500.0,0.00029041,3]
[343928761,1733086244827,-500.0,0.00029041,3]
[343928762,1733086244839,-500.0,0.00029041,3]
[343928763,1733086244848,-784.17,0.00029041,3]
[343928764,1733086244858,-4062.28,0.00029041,3]
[343928765,1733086244867,-500.0,0.00029041,3]
[343928766,1733086244877,-297.68787224,0.00029041,3]
[343928767,1733086244886,-1222.19,0.00029041,3]
[343928768,1733086244895,-1435.16,0.00029041,3]
[343928769,1733086244905,-3089.47,0.00029041,3]
[343928770,1733086244915,-500.0,0.00029041,3]
[343928771,1733086244926,-746.14,0.00029041,3]
[343928772,1733086244937,-1670.7,0.00029041,3]
[343928773,1733086244947,-500.0,0.00029041,3]
[343928774,1733086244957,-633.22779475,0.00029068,2]
[343928775,1733086244966,-778.72248815,0.000292,2]
[343928776,1733086244977,-151.0,0.000292,18]
[343928777,1733086244987,-254.82,0.00029245,120]
[343928778,1733086244997,-150.5,0.00029255,120]
[343928779,1733086245007,-267.77,0.00029265,120]
[343928780,1733086245016,-150.5,0.00029265,120]
[343928781,1733086245026,-299.0,0.00029265,120]
[343928782,1733086245035,-150.5,0.00029275,120]
[343928783,1733086245045,-150.5,0.00029275,120]
[343928784,1733086245056,-299.0,0.00029275,120]
[343928785,1733086245066,-150.5,0.00029285,120]
[343928786,1733086245076,-150.5,0.00029285,120]
[343928787,1733086245086,-299.0,0.00029285,120]
[343928788,1733086245096,-259.0,0.00029295,120]
[343928789,1733086245105,-150.5,0.00029305,120]
[343928790,1733086245114,-500.0,0.00029315,3]
[343928791,1733086245123,-500.0,0.00029315,3]
[343928792,1733086245133,-500.0,0.00029315,3]
[343928793,1733086245141,-500.0,0.00029315,3]
[343928794,1733086245150,-500.0,0.00029315,3]
[343928795,1733086245159,-500.0,0.00029315,3]
[343928796,1733086245168,-500.0,0.00029315,3]
[343928797,1733086245176,-308.60050939,0.00029315,3]
[343928798,1733086245186,-633.36,0.00029315,3]
[343928799,1733086245194,-621.6,0.00029315,3]
[343928800,1733086245203,-500.0,0.00029315,3]
[343928801,1733086245217,-500.0,0.00029315,3]
[343928802,1733086245226,-1636.35,0.00029315,3]
[343928803,1733086245233,-532.11,0.00029315,3]
[343928804,1733086245241,-13355.5,0.00029315,3]
[343928805,1733086245250,-553.16,0.00029315,3]
[343928806,1733086245257,-500.0,0.00029315,3]
[343928807,1733086245265,-1707.22,0.00029315,3]
[343928808,1733086245273,-500.0,0.00029315,3]
[343928809,1733086245279,-500.0,0.00029315,3]
[343928810,1733086245288,-2856.87,0.00029315,3]
[343928811,1733086245297,-500.0,0.00029315,3]
[343928812,1733086245307,-1159.82,0.00029315,3]
[343928813,1733086245316,-613.32,0.00029315,3]
[343928814,1733086245325,-1141.17,0.00029315,3]
[343928815,1733086245338,-1855.91,0.00029315,3]
[343928816,1733086245348,-500.0,0.00029315,3]
[343928817,1733086245357,-500.0,0.00029315,3]
[343928818,1733086245367,-500.0,0.00029315,3]
[343928819,1733086245377,-784.17,0.00029315,3]
[343928820,1733086245387,-500.0,0.00029315,3]
[343928821,1733086245396,-4062.28,0.00029315,3]
[343928822,1733086245406,-1222.19,0.00029315,3]
[343928823,1733086245483,-1435.16,0.00029315,3]
[343928824,1733086245493,-3089.47,0.00029315,3]
[343928825,1733086245503,-500.0,0.00029315,3]
[343928826,1733086245513,-746.14,0.00029315,3]
[343928827,1733086245523,-1670.7,0.00029315,3]
[343928828,1733086245532,-500.0,0.00029315,3]
[343928829,1733086245541,-500.0,0.00029481,5]
[343928830,1733086245551,-300.0,0.000295,2]
[343928831,1733086245560,-151.0,0.000295,15]
[343928832,1733086245569,-633.22779475,0.00029513,2]
[343928833,1733086245578,-299.0,0.0002957,120]
[343928834,1733086245589,-299.0,0.0002958,120]
[343928835,1733086245599,-500.0,0.00029589,3]
[343928836,1733086245607,-500.0,0.00029589,3]
[343928837,1733086245616,-372.91,0.00029589,3]
[343928838,1733086245625,-500.0,0.00029589,3]
[343928839,1733086245635,-500.0,0.00029589,3]
[343928840,1733086245644,-500.0,0.00029589,3]
[343928841,1733086245653,-500.0,0.00029589,3]
[343928842,1733086245663,-633.36,0.00029589,3]
[343928843,1733086245672,-621.6,0.00029589,3]
[343928844,1733086245681,-520.87272612,0.00029589,3]
[343928845,1733086245690,-500.0,0.00029589,3]
[343928846,1733086245699,-1636.35,0.00029589,3]
[343928847,1733086245709,-532.11,0.00029589,3]
[343928848,1733086245718,-13355.5,0.00029589,3]
[343928849,1733086245727,-500.0,0.00029589,3]
[343928850,1733086245736,-1707.22,0.00029589,3]
[343928851,1733086245745,-500.0,0.00029589,3]
[343928852,1733086245754,-500.0,0.00029589,3]
[343928853,1733086245763,-2856.87,0.00029589,3]
[343928854,1733086245772,-500.0,0.00029589,3]
[343928855,1733086245781,-1159.82,0.00029589,3]
[343928856,1733086245790,-613.32,0.00029589,3]
[343928857,1733086245799,-1141.17,0.00029589,3]
[343928858,1733086245808,-1855.91,0.00029589,3]
[343928859,1733086245818,-500.0,0.00029589,3]
[343928860,1733086245827,-500.0,0.00029589,3]
[343928861,1733086245838,-500.0,0.00029589,3]
[343928862,1733086245848,-784.17,0.00029589,3]
[343928864,1733086245858,-500.0,0.00029589,3]
[343928865,1733086245867,-4062.28,0.00029589,3]
[343928866,1733086245876,-1222.19,0.00029589,3]
[343928867,1733086245886,-1435.16,0.00029589,3]
[343928868,1733086245895,-3089.47,0.00029589,3]
[343928869,1733086245905,-518.91102,0.00029589,3]
[343928870,1733086245914,-746.14,0.00029589,3]
[343928871,1733086245924,-1670.7,0.00029589,3]
[343928872,1733086245934,-453.49915106,0.00029589,3]
[343928873,1733086245943,-230.5,0.0002959,120]
[343928874,1733086245952,-299.0,0.0002959,120]
[343928875,1733086245962,-156.24,0.000296,31]
[343928876,1733086245971,-156.24,0.000296,31]
[343928877,1733086245981,-156.24,0.000296,31]
[343928878,1733086245991,-156.24,0.000296,31]
[343928879,1733086246000,-156.24,0.000296,31]
[343928880,1733086246009,-156.24,0.000296,31]
[343928881,1733086246019,-156.24,0.000296,31]
[343928882,1733086246028,-156.24,0.000296,31]
[343928883,1733086246037,-156.24,0.000296,31]
[343928884,1733086246046,-156.24,0.000296,31]
[343928886,1733086246056,-156.24,0.000296,31]
[343928889,1733086246066,-156.24,0.000296,31]
[343928890,1733086246075,-156.24,0.000296,31]
[343928891,1733086246086,-156.24,0.000296,31]
[343928892,1733086246095,-156.24,0.000296,31]
[343928894,1733086246104,-156.24,0.000296,31]
[343928896,1733086246113,-156.24,0.000296,31]
[343928898,1733086246123,-156.24,0.000296,31]
[343928900,1733086246132,-156.24,0.000296,31]
[343928901,1733086246141,-156.24,0.000296,31]
[343928903,1733086246150,-156.24,0.000296,31]
[343928905,1733086246159,-156.24,0.000296,31]
[343928906,1733086246169,-156.24,0.000296,31]
[343928907,1733086246178,-156.24,0.000296,31]
[343928908,1733086246188,-57735.64107682,0.000298,120]
[343928909,1733086246197,-151.0,0.000298,16]
[343928910,1733086246210,-500.0,0.00029863,3]
[343928911,1733086246221,-500.0,0.00029863,3]
[343928912,1733086246230,-500.0,0.00029863,3]
[343928913,1733086246240,-500.0,0.00029863,3]
[343928914,1733086246251,-500.0,0.00029863,3]
[343928915,1733086246260,-224.46684505,0.00029863,3]
[343928916,1733086246270,-633.36,0.00029863,3]
[343928917,1733086246279,-621.6,0.00029863,3]
[343928918,1733086246289,-500.0,0.00029863,3]
[343928919,1733086246298,-1636.35,0.00029863,3]
[343928920,1733086246307,-532.11,0.00029863,3]
[343928921,1733086246317,-13355.5,0.00029863,3]
[343928922,1733086246326,-500.0,0.00029863,3]
[343928924,1733086246337,-1707.22,0.00029863,3]
[343928925,1733086246347,-500.0,0.00029863,3]
[343928926,1733086246356,-500.0,0.00029863,3]
[343928927,1733086246366,-2856.87,0.00029863,3]
[343928928,1733086246375,-500.0,0.00029863,3]
[343928929,1733086246385,-1159.82,0.00029863,3]
[343928930,1733086246394,-613.32,0.00029863,3]